Cogmind - Beta 16.1 @@@ ROGUE MODE // 2026.06.20 @ 20:22:50 Player: Ice_Kraken505 Result: Self-destructed Performance ------------- Evolutions (1) 500 Regions Visited (2) 400 Robots Destroyed (23) 115 Value Destroyed (615) 615 Prototype IDs (4) 80 Alien Tech Used (0) 0 Bonus (0) 0 TOTAL SCORE: 1710 Bonus ------- None Cogmind --------- Core Integrity 400/400 Matter 220/300 Energy 250/250 System Corruption 0% Temperature Cool (0) Movement Hovering (52) Location -9/Materials Parts ------- > --- POWER (1) -------- Ion Engine > --- PROPULSION (3) --- Hover Unit Hover Unit Hover Unit > --- UTILITY (3) ------ Signal Interpreter Shield Generator Hacking Suite > --- WEAPON (2) ------- Improved Assault Rifle Grenade Launcher > --- INVENTORY (5) ---- Improved Assault Rifle Mining Claw Peak State ------------ > --- POWER ------------ Ion Engine > --- PROPULSION ------- Hover Unit Hover Unit Hover Unit > --- UTILITY ---------- Signal Interpreter Shield Generator Hacking Suite > --- WEAPON ----------- Improved Assault Rifle Grenade Launcher > --- INVENTORY -------- Subdweller Machine Gun Improved Assault Rifle Mining Claw [Rating: 14] Favorites ----------- Power Ion Engine Engine Ion Engine Propulsion Light Treads Treads Light Treads Wheel Compact Wheel Hover Unit Hover Unit Utility Signal Interpreter Device Shield Generator Storage Small Storage Unit Processor Signal Interpreter Hackware Hacking Suite Weapon Light Assault Rifle Ballistic Gun Light Assault Rifle Launcher Grenade Launcher Build | -11 -10 -9 ------- Run | Yrd Mat Mat Slots Evolved 2 | . . 2 Power . | . . . Propulsion 1 | . . 1 Utility 1 | . . 1 Weapon . | . . . Parts Attached 22 | 6 9 7 Power 4 | 1 3 . Engine 4 | 1 3 . Core . | . . . Reactor . | . . . Propulsion 7 | 2 2 3 Treads 2 | . 2 . Leg . | . . . Wheel 2 | 2 . . Hover 3 | . . 3 Flight . | . . . Utility 5 | 1 1 3 Device 2 | . . 2 Storage 1 | 1 . . Processor 1 | . 1 . Hackware 1 | . . 1 Protection . | . . . Artifact . | . . . Weapon 6 | 2 3 1 Energy Gun . | . . . Energy Cannon . | . . . Ballistic Gun 5 | 2 2 1 Ballistic Cannon . | . . . Launcher 1 | . 1 . Special Weapon . | . . . Impact Weapon . | . . . Slashing Weapon . | . . . Piercing Weapon . | . . . Special Melee Weapon . | . . . Unidentified Prototypes . | . . . Parts Lost 5 | . 5 . Power 2 | . 2 . Propulsion 1 | . 1 . Utility . | . . . Weapon 2 | . 2 . Highest Loss Streak 2 | . 2 . To Critical Strikes . | . . . Average Backups 4 | 1 4 3 Power . | . . . Propulsion 1 | . 1 1 Utility . | . . . Weapon 1 | . 1 2 Tool/Special . | . . . Unused Backups 7 | . 1 6 Power 1 | . . 1 Propulsion 1 | . 1 . Utility 1 | . . 1 Weapon 4 | . . 4 Tool/Special . | . . . Average Slot Usage (%) 97 | . 97 94 Engine 12 | . 13 11 Treads 21 | . 22 9 Wheel 4 | . 4 . Hover 1 | . . 19 Storage 12 | . 14 1 Processor 13 | . 13 11 Ballistic Gun 19 | . 20 11 Launcher 7 | . 7 11 Peak Build Rating 14 | 6 9 14 Average Rating 7 | 4 7 12 On Entrance 5 | . 6 9 Avg Prop Armor Cover (%) . | . . . Naked Turns . | . . . Heaviest Build 17 | 10 17 17 Greatest Support 40 | 32 40 40 Greatest Overweight (x) . | . . . Average Overweight (x) . | . . . Largest Inventory Capacity 8 | 8 8 8 Average Capacity 7 | 7 8 5 Most Carried 8 | 4 8 8 Average Carried 4 | 1 4 3 Final Capacity 8 | 8 8 5 Final Carried 8 | 4 8 2 Class Distribution -------------------- 92% | Mutant 7% | Scavenger-Mutant Dominant Class ---------------- Mutant | -10/Materials Scavenger-Mutant | -9/Materials Resources | -11 -10 -9 ----------- Run | Yrd Mat Mat Matter Collected 620 | 210 410 . Remotely . | . . . Salvage Created 657 | . 657 . Parts 51 | . 51 . Haulers Intercepted . | . . . Recyclers Shooed . | . . . Parts Field Recycled . | . . . Retrieved Matter . | . . . Parts Self-Destructed . | . . . Prevented . | . . . Parts Restored . | . . . Kills | -11 -10 -9 ------- Run | Yrd Mat Mat Combat Hostiles Destroyed 14 | . 14 . Guns 9 | . 9 . AOE 5 | . 5 . Classes Destroyed 9 | . 9 . Worker 1 | . 1 . Builder 1 | . 1 . Recycler 1 | . 1 . Mechanic 1 | . 1 . Operator 2 | . 2 . Watcher 3 | . 3 . Swarmer 2 | . 2 . Grunt 11 | . 11 . Subdweller 1 | . 1 . Best Kill Streak 4 | . 4 . Combat Bots Only 4 | . 4 . Max Kills in Single Turn 2 | . 2 . Gunslinging . | . . . Exploded 2 | . 2 . Melee . | . . . Uniques/NPCs Destroyed . | . . . Combat | -11 -10 -9 -------- Run | Yrd Mat Mat Hostile Shots Fired 90 | . 88 2 Missed 28 | . 27 1 Hits 62 | . 61 1 Projectile 62 | . 61 1 Damage Taken 880 | . 868 12 Core 181 | . 181 . Absorbed by Shields 5 | . . 5 Core Remaining (%) 63 | 100 27 . Volleys Fired 93 | . 93 . Largest 2 | . 2 . Hottest 50 | . 50 . Shots Fired 170 | . 170 . Gun 157 | . 157 . Cannon . | . . . Launcher 13 | . 13 . Special . | . . . Kinetic 157 | . 157 . Thermal . | . . . Explosive 13 | . 13 . Electromagnetic . | . . . Robot Hit Streak 10 | . 10 . Robot Miss Streak 5 | . 5 . Penetration Max . | . . . Secondary Targets . | . . . Shots Hit Robots 109 | . 109 . Core Hits 52 | . 52 . Critical Kills . | . . . Critical Parts Destroyed 1 | . 1 . Critical Strikes 1 | . 1 . Destroy 1 | . 1 . Melee Attacks . | . . . Impact . | . . . Slashing . | . . . Piercing . | . . . Sneak Attacks . | . . . Combat Hostiles . | . . . Follow-up Attacks . | . . . Damage Inflicted 1534 | . 1534 . Guns 896 | . 896 . Cannons . | . . . Explosions 638 | . 638 . Melee . | . . . Ramming . | . . . Kinetic 896 | . 896 . Thermal . | . . . Explosive 638 | . 638 . Electromagnetic . | . . . Impact . | . . . Slashing . | . . . Piercing . | . . . Highest Corruption . | . . . Average Corruption . | . . . Corruption Purged . | . . . Corruption Blocked . | . . . Overload Shots . | . . . Overflow Damage 38 | . 38 . Projectiles . | . . . Explosions 38 | . 38 . Melee . | . . . Knockbacks . | . . . Impact . | . . . Kinetic . | . . . Secondary . | . . . Self-Inflicted Damage 53 | . 53 . Shots 3 | . 3 . Rammed 1 | . 1 . Targets Rammed 1 | . 1 . Kicked . | . . . Crushed . | . . . Highest Temperature 40 | . 40 . Average Temperature 9 | . 9 . Received Heat Transfer 411 | . 411 . Siege Activations . | . . . Martial Activations . | . . . Shielding Activations . | . . . Robots Disrupted . | . . . Combat Hostiles . | . . . Robots Corrupted . | . . . Combat Hostiles . | . . . Parts Fried . | . . . Impact Corruptions . | . . . Robots Melted . | . . . Combat Hostiles . | . . . Parts Melted . | . . . Heat Transferred . | . . . Parts Sabotaged . | . . . Parts Stolen . | . . . Parts Stripped . | . . . Power Chain Reactions . | . . . Alert | -11 -10 -9 ------- Run | Yrd Mat Mat Maximum Alert Level . | . . . Low Security (%) 100 | 100 100 100 Level 1 . | . . . Level 2 . | . . . Level 3 . | . . . Level 4 . | . . . Level 5 . | . . . High Security . | . . . Max Security . | . . . Peak Influence 148 | . 148 22 Initial 22 | . . 22 Average 64 | . 72 6 Influence Increases 544 | . 529 15 Destroy 0b10 Robot/C 260 | . 260 . Destroy 0b10 Robot/NC 45 | . 45 . Destroy Leader 66 | . 66 . Successful Hack 30 | . 30 . Disable Machine 75 | . 75 . Destroy Structure 38 | . 38 . Partial Spotted 15 | . . 15 Lose Combat Pursuer 15 | . 15 . Influence Decreases 539 | . 476 63 Entered New Map 31 | . . 31 Time Decay 468 | . 436 32 Lost Part 40 | . 40 . Squads Dispatched 3 | . 3 . Investigation 2 | . 2 . Extermination . | . . . Reinforcement 1 | . 1 . Assault . | . . . Garrison . | . . . Intercept . | . . . Searches Triggered . | . . . Construction Impeded . | . . . Haulers Reinforced . | . . . Active Scanning Responses . | . . . Cargo Convoy Interrupts . | . . . Stealth | -11 -10 -9 --------- Run | Yrd Mat Mat Distress Signals 2 | . 2 . Communications Jammed . | . . . Distress Signals . | . . . Times Spotted 31 | . 29 2 Peak Tracking Total 7 | . 7 2 Tactical Retreats 1 | . 1 . Traps | -11 -10 -9 ------- Run | Yrd Mat Mat Traps Triggered . | . . . Indirectly . | . . . Trap Hack Attempts . | . . . Triggered . | . . . Disarmed . | . . . Reprogrammed . | . . . Reused . | . . . Traps Extracted . | . . . Installed . | . . . Triggered . | . . . Machines | -11 -10 -9 ---------- Run | Yrd Mat Mat Machines Disabled 6 | . 6 . Max in Single Turn 2 | . 2 . Machines Repaired . | . . . Machines Dismantled . | . . . Machines Sabotaged . | . . . Overloaded Fab Kills . | . . . Hacking | -11 -10 -9 --------- Run | Yrd Mat Mat Machines Accessed 6 | . 4 2 Terminals 4 | . 3 1 Fabricators . | . . . Repair Stations . | . . . Recycling Units 2 | . 1 1 Scanalyzers . | . . . Garrison Access . | . . . Total Hacks 27 | . 22 5 Successful 18 | . 14 4 Failed 9 | . 8 1 Catastrophic . | . . . Database Lockouts . | . . . Manual 1 | . 1 . Terminals 22 | . 19 3 Fabricators . | . . . Repair Stations . | . . . Recycling Units 5 | . 3 2 Scanalyzers . | . . . Garrison Access . | . . . Terminal Hacks 13 | . 11 2 Prototype ID Bank 2 | . 1 1 Emergency Access Points 2 | . 2 . Scanalyzer Index 1 | . 1 . Locate Traps 2 | . 1 1 Surveillance Status 2 | . 2 . Transport Status 1 | . 1 . Hauler Manifests 1 | . 1 . Registered Components 1 | . 1 . Zone Layout 1 | . 1 . Fabricator Hacks . | . . . Repair Station Hacks . | . . . Recycling Unit Hacks 4 | . 2 2 Report Inventory 2 | . 1 1 Retrieve Components 2 | . 1 1 Scanalyzer . | . . . Garrison Access Hacks . | . . . Unauthorized Hacks 1 | . 1 . Terminals 1 | . 1 . Track 1 | . 1 . Fabricators . | . . . Repair Stations . | . . . Recycling Units . | . . . Scanalyzers . | . . . Garrison Access . | . . . Data Cores Recovered 1 | . 1 . Used . | . . . Hacking Detections 4 | . 3 1 Full Trace Events 4 | . 3 1 Feedback Events . | . . . Feedback Blocked . | . . . Robot Schematics Acquired . | . . . Robots Built . | . . . Authchips . | . . . Time . | . . . Total Robot Build Rating . | . . . Part Schematics Acquired . | . . . Parts Built . | . . . Authchips . | . . . Time . | . . . Total Part Build Rating . | . . . Part Studies Acquired . | . . . Parts Repaired . | . . . Time . | . . . Parts Recycled . | . . . Recycled Matter . | . . . Retrieved Matter . | . . . Retrieved Components 13 | . 10 3 Parts Scanalyzed . | . . . Part Schematics Acquired . | . . . Parts Damaged . | . . . Bothacking | -11 -10 -9 ------------ Run | Yrd Mat Mat Used RIF Installer . | . . . Robots Hacked . | . . . Non-combat . | . . . Combat . | . . . Robot Hacks Applied . | . . . Relay Couplers Released . | . . . Fabnet Peak Effective % . | . . . Robots Rewired . | . . . Allies Hacked . | . . . Hacks Repelled . | . . . Allies | -11 -10 -9 -------- Run | Yrd Mat Mat Total Allies . | . . . Largest Group . | . . . Highest-Rated Group . | . . . Highest-Rated Ally . | . . . Total Orders . | . . . Ally Attacks . | . . . Total Damage . | . . . Kills . | . . . Allies Corrupted . | . . . Allies Melted . | . . . Intel | -11 -10 -9 ------- Run | Yrd Mat Mat Active Infowar (turns) . | . . . Robot Analysis Total . | . . . Derelict Logs Recovered . | . . . Drone Launches . | . . . Drone Recoveries . | . . . Exploration | -11 -10 -9 ------------- Run | Yrd Mat Mat Turns Passed 1438 | 63 1262 113 Spaces Moved 848 | 53 654 141 Core 5 | 5 . . Treads 563 | . 543 20 Legs . | . . . Wheels 159 | 48 111 . Hover 121 | . . 121 Flight . | . . . Fastest Speed 50 | 50 100 52 Average Speed 132 | 95 149 67 Slowest Speed 160 | 100 160 160 Overloaded Moves . | . . . Propulsion Burnouts . | . . . Robots Hopped . | . . . Potential Cave-ins . | . . . Cave-ins Triggered . | . . . Exploration Rate (%) 31 | 3 73 17 Regions Visited 2 Branch Regions . Pre-discovered Areas . | . . . Known Exits Taken 1 | . 1 . Unknown Exits Taken 1 | 1 . . Scrap Searched . | . . . Spaces Dug . | . . . Terrain Destroyed 38 | . 38 . Melee . | . . . Projectile . | . . . AOE 38 | . 38 . Terrain Rammed . | . . . Walls Destroyed . | . . . Machines Disabled . | . . . Actions | -11 -10 -9 --------- Run | Yrd Mat Mat Total 1022 | 62 799 161 Wait 21 | . 21 . Move 846 | 52 653 141 Hop . | . . . Pick Up 22 | 4 14 4 Fast Attach 9 | 6 1 2 Attach 12 | . 7 5 Detach 3 | . 2 1 Swap 3 | . 2 1 Drop 12 | . 5 7 Fire 93 | . 93 . Melee . | . . . Ram . | . . . Kick . | . . . Crush 1 | . 1 . Escape Stasis . | . . . Rewire . | . . . Trap . | . . . Miscellaneous . | . . . Route ------- -11/Scrapyard -10/Materials (discovered 2 exits: *Mat / *Min) -9/Materials History --------- Turn | Location | Event 20 | -11/Scrapyard | Discovered new exit (range 16) 64 | -11/Scrapyard | Entered Materials 277 | -10/Materials | Core integrity fell below 50% 315 | -10/Materials | Build established: Mutant 532 | -10/Materials | Discovered new exit (range 16) 598 | -10/Materials | Discovered new exit (range 12) 664 | -10/Materials | Derelicts attacked the area 818 | -10/Materials | Identified exit to Mines 1000 | -10/Materials | Identified exit to Materials 1326 | -10/Materials | Entered another Materials area 1326 | -9/Materials | Evolved 2 slots: Propulsion x1, Utility x1 1439 | -9/Materials | Self-destructed Last Messages --------------- Dropped Faulty Imp. Assault Rifle. Acquired Imp. Assault Rifle. Dropped Sub. Machine Gun. R-06 Scavenger collects Sub. Machine Gun. K-01 Serf collects debris. Connecting with Terminal... >>Traps(Locate) Found 6 traps in 1 array: 6x Blade Trap Map updated. >>Prototypes Downloading prototype IDs... Imp. Flight Unit Hvy. Particle Gun T-07 Excavator is excavating. K-01 Serf collects debris. T-07 Excavator is excavating. K-01 Serf collects debris. T-07 Excavator is excavating. K-01 Serf cleans the Integration Channel. Map ----- +----------------------------------------------------+ | ?????????????????????????????????????????????????? | | ?????????????????????????????????????????????????? | | ?????????????????????????????????????????????????? | | ?????????????????????????????????????????????????? | | ?????????????????????????????????????????????????? | | ?????????????????????????????????????????????????? | | ?????????????????????????????????????????????????? | | ?????????????????????????????????????????????????? | | ?????????????????????????????????????????????????? | | ?????????????????????????????????????????????????? | | ?????????????????????????????????????????????????? | | ?????????????????????????????????????????????????? | | ??????????????????????????? ???????????????????? | | ??????????????????????????? ?"???????????????? | | ??????????????????????????? ????????????????? | | ??????????????????????????? "???????????????? | | ??????????????????????????# ""???????????????? | | ??????????????????????????" ""??? #??????????? | | ?????????????????????????? """? #??????????? | | ??????????????????????????" """ #??????????? | | ??????????????????????????# """ ##?????????? | | ??????????????????######### " ?????????? | | ??????????????????? !# ??????????? | | ??????????????????? """ # ??????????? | | ???????????????????""""" # " ##??????????? | | ???????????????????""""" @# "" ""??????????? | | ???????????????????""""" + "" R??????????? | | ?????????????????? """ # """ ""??????????? | | ?????????????????# # "" #???????????? | | ?????????????????# [[# """ #???????????? | | ?????????????????# [ # """ #???????????? | | ?????????????????########## """ #???????????? | | ???????????????????# " #???????????? | | ????????????????#### #???????????? | | ????????????????# #^^ ^^ ^ #???????????? | | ????????????????# ^ ###############???????????? | | ????????????????# # #?????????????????????????? | | ????????????????##?# #?????????????????????????? | | ?????############### ########??????????????????? | | ?????# # #??????????????????? | | ?????# T # +??????????????????? | | ?????# [ # #??????????????????? | | ?????# + ###+######### #??????????????????? | | ?????# # # ???????????????????????????? | | ?????# # # #?????????????????????????? | | ??########### # """ #?????????????????????????? | | ??# ==????# # """ #?????????????????????????? | | ??# == ??# # """ #?????????????????????????? | | ??# == # # #?????????????????????????? | | ??# + ########?????????????????????????? | +----------------------------------------------------+ Best States ------------- Heat Dissipation 28 Energy Generation 10 Energy Capacity 250 Matter Stores 300 Matter Capacity 300 Sight Range 16 Terrain Scan Density 10 Evasion (%) 54 Recoil Reduction 2 Offensive Hacking 10 Trap Extractor Capacity 4 Item Schematics ----------------- None Robot Schematics ------------------ None Fabricated ------------ Nothing Repaired ---------- Nothing Studied --------- None Alien Tech Used ----------------- None Achievements -------------- None Challenges ------------ None Game ------ Seed MomentumEnergyMonowheel Manual? 0 Play Time 00:20:01 Cumulative 21.1 hours Start 2026.03.25 @ 22:03:09 End 2026.06.20 @ 20:22:50 Sessions 3 Manual Loads 0 Difficulty Rogue Special Mode None Game No. 25 Rogue 25 Adventurer 0 Explorer 0 Win Type - Total 0 Types 0/0/0/0/0/0/0/0/0/0 Lore% 11 Gallery% 19 Achievement% 13 Wizard Run 0 Options --------- Layout 1 ASCII 0 Keyboard 1 Movement Arrows Keybinds 0 Fullscreen 1 Font 24/Smallcaps Map View 50x35 Zoom Use 0% Tactical HUD 0 Map Filters NONE Filters NONE Steam 1 RUN: b9233a52-5da7-4e20-99ba-17b6022569fb